fUST/lending_fUST_20250805
["ID","MTS","AMOUNT","RATE_DAILY","PERIOD"]
[377428743,1754409051195,-460.0,0.00027945,2]
[377428745,1754409051204,-460.0,0.00027945,2]
[377428747,1754409051213,-296.94731861,0.00027945,2]
[377428749,1754409051223,-4337.79,0.00027945,2]
[377428751,1754409051232,-460.0,0.00027945,2]
[377428753,1754409051242,-470.09562501,0.00027945,2]
[377428755,1754409051251,-460.0,0.00027945,2]
[377428757,1754409051260,-460.0,0.00027945,2]
[377428759,1754409051271,-460.0,0.00027945,2]
[377428761,1754409051281,-23528.48505612,0.00027955,2]
[377428763,1754409051290,-152.81,0.00027962,15]
[377428765,1754409051300,-152.76,0.00027966,15]
[377428767,1754409051309,-460.0,0.00027979,2]
[377428769,1754409051322,-460.0,0.00027979,2]
[377428771,1754409051331,-500.0,0.00027979,2]
[377428773,1754409051342,-460.0,0.00027979,2]
[377428775,1754409051355,-460.0,0.00027979,2]
[377428777,1754409051364,-460.0,0.00027979,2]
[377428779,1754409051373,-460.0,0.00027979,2]
[377428781,1754409051383,-462.27824546,0.00027979,2]
[377428783,1754409051392,-460.0,0.00027979,2]
[377428785,1754409051401,-460.0,0.00027979,2]
[377428787,1754409051410,-460.0,0.00027979,2]
[377428789,1754409051420,-460.0,0.00027979,2]
[377428791,1754409051430,-460.0,0.00027979,2]
[377428793,1754409051440,-463.78203178,0.0002798,2]
[377428795,1754409051450,-464.63171142,0.0002798,2]
[377428797,1754409051459,-460.0,0.0002798,2]
[377428799,1754409051470,-460.0,0.0002798,2]
[377428801,1754409051479,-388.47094695,0.0002798,2]
[377428803,1754409051488,-460.0,0.0002798,2]
[377428805,1754409051497,-460.0,0.0002798,2]
[377428807,1754409051507,-500.0,0.0002798,5]
[377428809,1754409051516,-466.52020443,0.0002798,2]
[377428811,1754409051526,-460.0,0.0002798,2]
[377428813,1754409051536,-460.0,0.0002798,2]
[377428815,1754409051545,-460.0,0.0002798,2]
[377428817,1754409051554,-460.0,0.0002798,2]
[377428819,1754409051564,-460.0,0.0002798,2]
[377428821,1754409051574,-466.19670488,0.0002798,2]
[377428823,1754409051583,-460.0,0.0002798,2]
[377428825,1754409051592,-460.0,0.0002798,2]
[377428827,1754409051602,-549.47,0.0002798,2]
[377428829,1754409051611,-151.0,0.0002798,7]
[377428831,1754409051621,-151.0,0.0002798,7]
[377428833,1754409051630,-151.0,0.0002798,7]
[377428835,1754409051640,-151.0,0.0002798,7]
[377428837,1754409051649,-151.0,0.0002798,7]
[377428839,1754409051659,-460.0,0.0002798,2]
[377428841,1754409051668,-195.826118,0.0002798,7]
[377428843,1754409051678,-195.826118,0.0002798,7]
[377428845,1754409051688,-460.0,0.0002798,2]
[377428847,1754409051697,-460.0,0.0002798,2]
[377428849,1754409051706,-460.0,0.0002798,2]
[377428851,1754409051716,-566.7,0.0002798,2]
[377428853,1754409051725,-460.0,0.0002798,2]
[377428855,1754409051734,-464.95430982,0.0002798,2]
[377428857,1754409051744,-151.0,0.0002798,7]
[377428859,1754409051753,-460.0,0.0002798,2]
[377428861,1754409051762,-151.0,0.0002798,7]
[377428863,1754409051771,-467.41,0.0002798,2]
[377428865,1754409051780,-151.0,0.0002798,7]
[377428866,1754409051790,-460.0,0.0002798,2]
[377428867,1754409051800,-460.0,0.0002798,2]
[377428868,1754409051809,-460.0,0.0002798,2]
[377428869,1754409051820,-1547.194485,0.00028,3]
[377428870,1754409051829,-527.3554621,0.00028,3]
[377428871,1754409051839,-527.3554621,0.00028,3]
[377428872,1754409051849,-312.16666667,0.00028,3]
[377428873,1754409051858,-312.16666667,0.00028,3]
[377428874,1754409051867,-281.673442,0.00028038,7]
[377428875,1754409051877,-151.0,0.00028038,7]
[377428876,1754409051886,-153.384366,0.00028048,7]
[377428877,1754409051896,-164.987345,0.00028048,7]
[377428878,1754409051905,-151.0,0.00028048,7]
[377428879,1754409051914,-151.0,0.00028048,7]
[377428880,1754409051923,-842.25606042,0.00028048,7]
[377428881,1754409051933,-216.4206905,0.00028048,7]
[377428882,1754409051942,-152.81,0.00028062,15]
[377428883,1754409051952,-152.78,0.00028066,15]
[377428884,1754409051962,-151.0,0.00028068,7]
[377428885,1754409051971,-1500.0,0.00028068,5]
[377428886,1754409051981,-9891.09466159,0.00028119,2]
[377428887,1754409051991,-151.0,0.00028159,7]
[377428889,1754409052001,-151.0,0.00028159,7]
[377428890,1754409052011,-151.0,0.00028188,7]
[377428892,1754409052021,-460.0,0.00028188,2]
[377428894,1754409052030,-1212.8,0.00028188,2]
[377428896,1754409052039,-472.47,0.00028188,2]
[377428898,1754409052048,-460.0,0.00028188,2]
[377428900,1754409052058,-460.0,0.00028188,2]
[377428902,1754409052068,-460.0,0.00028188,2]
[377428904,1754409052077,-460.0,0.00028188,2]
[377428906,1754409052086,-460.0,0.00028219,2]
[377428908,1754409052096,-460.0,0.00028219,2]
[377428910,1754409052106,-460.0,0.00028219,2]
[377428912,1754409052115,-460.0,0.00028219,2]
[377428914,1754409052124,-412.79142189,0.00028219,2]
[377428916,1754409052134,-460.0,0.00028219,2]
[377428918,1754409052144,-460.0,0.00028219,2]
[377428920,1754409052154,-461.69525378,0.00028219,2]
[377428922,1754409052164,-460.0,0.00028219,2]
[377428924,1754409052173,-446.755157,0.00028219,2]
[377428926,1754409052183,-460.0,0.00028219,2]
[377428928,1754409052193,-845.72,0.00028219,2]
[377428930,1754409052202,-366.07535684,0.00028219,2]
[377428932,1754409052211,-619.42,0.00028219,2]
[377428934,1754409052221,-460.0,0.00028219,2]
[377428936,1754409052230,-151.0,0.00028219,7]
[377428938,1754409052239,-155.950444,0.00028219,7]
[377428940,1754409052249,-460.0,0.00028219,2]
[377428942,1754409052258,-460.0,0.00028219,2]
[377428944,1754409052267,-154.817736,0.00028219,7]
[377428946,1754409052276,-151.0,0.00028219,7]
[377428948,1754409052286,-460.0,0.00028219,2]
[377428950,1754409052295,-151.0,0.00028219,7]
[377428952,1754409052304,-460.0,0.00028219,2]
[377428954,1754409052313,-460.0,0.00028219,2]
[377428956,1754409052324,-460.0,0.00028219,2]
[377428958,1754409052333,-799.22,0.00028219,2]
[377428960,1754409052343,-506.26,0.00028219,2]
[377428962,1754409052355,-460.0,0.00028219,2]
[377428963,1754409052364,-460.0,0.00028219,2]
[377428965,1754409052373,-151.0,0.00028219,7]
[377428967,1754409052382,-460.0,0.00028219,2]
[377428969,1754409052393,-218.13481286,0.00028219,2]
[377428972,1754409052403,-911.51,0.00028219,2]
[377428974,1754409052412,-460.0,0.00028219,2]
[377428975,1754409052422,-460.0,0.00028219,2]
[377428978,1754409052431,-460.0,0.00028219,2]
[377428979,1754409052441,-557.39,0.00028219,2]
[377428981,1754409052452,-151.0,0.00028219,7]
[377428984,1754409052462,-460.0,0.00028219,2]
[377428986,1754409052471,-195.826118,0.00028219,7]
[377428995,1754409052481,-195.826118,0.00028219,7]
[377428998,1754409052566,-756.93,0.00028219,2]
[377429000,1754409052575,-460.0,0.00028219,2]
[377429002,1754409052585,-151.0,0.00028219,7]
[377429004,1754409052594,-460.0,0.00028219,2]
[377429006,1754409052604,-151.0,0.00028219,7]
[377429008,1754409052613,-1414.05,0.00028219,2]
[377429010,1754409052623,-151.0,0.00028219,7]
[377429012,1754409052632,-351.17501588,0.00028219,2]
[377429014,1754409052641,-460.0,0.00028219,2]
[377429016,1754409052651,-460.0,0.00028219,2]
[377429018,1754409052660,-12655.02535889,0.00028219,7]
[377429020,1754409052669,-3511.45,0.00028219,2]
[377429022,1754409052678,-460.0,0.00028219,2]
[377429024,1754409052688,-460.0,0.00028219,2]
[377429026,1754409052698,-654.72,0.00028219,2]
[377429028,1754409052707,-460.0,0.00028219,2]
[377429030,1754409052717,-673.35,0.00028219,2]
[377429032,1754409052726,-2081.36,0.00028219,2]
[377429034,1754409052736,-1175.62,0.00028219,2]
[377429036,1754409052745,-460.0,0.00028219,2]
[377429038,1754409052754,-460.0,0.00028219,2]
[377429040,1754409052764,-1689.44,0.00028219,2]
[377429042,1754409052773,-460.0,0.00028219,2]
[377429044,1754409052782,-460.0,0.00028219,2]
[377429045,1754409052792,-460.0,0.00028219,2]
[377429047,1754409052801,-460.0,0.00028219,2]
[377429050,1754409052811,-1728.56,0.00028219,2]
[377429051,1754409052828,-697.8,0.00028219,2]
[377429053,1754409052838,-460.0,0.00028219,2]
[377429055,1754409052847,-982.92,0.00028219,2]
[377429057,1754409052856,-460.0,0.00028219,2]
[377429059,1754409052865,-464.34018882,0.00028219,2]
[377429061,1754409052875,-460.0,0.00028219,2]
[377429063,1754409052885,-708.67,0.00028219,2]
[377429065,1754409052894,-1169.66,0.00028219,2]
[377429067,1754409052904,-839.68,0.00028219,2]
[377429069,1754409052914,-460.0,0.00028219,2]
[377429071,1754409052923,-349.3860559,0.00028219,2]
[377429074,1754409052933,-570.44,0.00028219,2]
[377429076,1754409052942,-460.0,0.00028219,2]
[377429077,1754409052952,-460.0,0.00028219,2]
[377429079,1754409052961,-460.0,0.00028219,2]
[377429081,1754409052971,-460.0,0.00028219,2]
[377429084,1754409052980,-961.19,0.00028219,2]
[377429085,1754409052991,-460.0,0.00028219,2]
[377429088,1754409053000,-460.0,0.00028219,2]
[377429090,1754409053011,-460.0,0.00028219,2]
[377429091,1754409053020,-471.73,0.00028219,2]
[377429093,1754409053029,-460.0,0.00028219,2]
[377429095,1754409053038,-460.0,0.00028219,2]
[377429097,1754409053048,-151.0,0.00028219,7]
[377429099,1754409053057,-460.0,0.00028219,2]
[377429102,1754409053070,-2396.86,0.00028219,2]
[377429103,1754409053079,-469.77863494,0.00028219,2]
[377429105,1754409053089,-460.0,0.00028219,2]
[377429107,1754409053098,-789.91,0.00028219,2]
[377429109,1754409053107,-460.0,0.00028219,2]
[377429111,1754409053116,-460.0,0.00028219,2]
[377429113,1754409053126,-871.01,0.00028219,2]
[377429115,1754409053135,-460.0,0.00028219,2]
[377429117,1754409053144,-460.0,0.00028219,2]
[377429119,1754409053154,-460.0,0.00028219,2]
[377429121,1754409053163,-711.15,0.00028219,2]
[377429123,1754409053173,-460.0,0.00028219,2]
[377429125,1754409053183,-1056.26,0.00028219,2]
[377429127,1754409053192,-460.0,0.00028219,2]
[377429129,1754409053201,-151.0,0.00028219,7]
[377429131,1754409053211,-196.73325,0.00028219,7]
[377429133,1754409053220,-576.88,0.00028219,2]
[377429135,1754409053230,-1053.24,0.00028219,2]
[377429137,1754409053239,-460.0,0.00028219,2]
[377429139,1754409053249,-642.56,0.00028219,2]
[377429141,1754409053259,-468.11,0.00028219,2]
[377429143,1754409053269,-460.0,0.00028219,2]
[377429145,1754409053278,-709.8,0.00028219,2]
[377429147,1754409053287,-460.0,0.00028219,2]
[377429149,1754409053296,-460.0,0.00028219,2]
[377429151,1754409053305,-460.0,0.00028219,2]
[377429153,1754409053318,-514.83,0.00028219,2]
[377429155,1754409053328,-460.0,0.00028219,2]
[377429157,1754409053336,-1191.82,0.00028219,2]
[377429159,1754409053348,-460.0,0.00028219,2]
[377429161,1754409053359,-1935.53,0.00028219,2]
[377429163,1754409053368,-490.45,0.00028219,2]
[377429165,1754409053377,-151.0,0.00028219,7]
[377429166,1754409053386,-1284.43,0.00028219,2]
[377429167,1754409053395,-546.3,0.00028219,2]
[377429168,1754409053404,-469.82015924,0.00028219,2]
[377429169,1754409053414,-676.59,0.00028219,2]
[377429170,1754409053423,-460.0,0.00028219,2]
[377429171,1754409053432,-460.0,0.00028219,2]
[377429172,1754409053441,-541.21,0.00028219,2]
[377429173,1754409053451,-460.0,0.00028219,2]
[377429174,1754409053461,-740.58,0.00028219,2]
[377429175,1754409053470,-460.0,0.00028219,2]
[377429176,1754409053479,-460.0,0.00028219,2]
[377429177,1754409053488,-460.0,0.00028219,2]
[377429178,1754409053497,-460.0,0.00028219,2]
[377429179,1754409053507,-460.0,0.00028219,2]
[377429180,1754409053516,-460.0,0.00028219,2]
[377429181,1754409053526,-500.0,0.00028219,2]
[377429182,1754409053535,-556.84,0.00028219,2]
[377429183,1754409053544,-460.0,0.00028219,2]
[377429184,1754409053554,-460.0,0.00028219,2]
[377429185,1754409053563,-460.0,0.00028219,2]
[377429186,1754409053575,-4337.79,0.00028219,2]
[377429187,1754409053585,-460.0,0.00028219,2]
[377429188,1754409053594,-460.0,0.00028219,2]
[377429189,1754409053604,-460.0,0.00028219,2]
[377429190,1754409053613,-460.0,0.00028219,2]
[377429191,1754409053623,-1000.0,0.00028221,2]
[377429192,1754409053632,-501.66944274,0.00028221,5]
[377429193,1754409053641,-250.0,0.00028221,5]
[377429194,1754409053651,-460.0,0.00028253,2]
[377429195,1754409053660,-500.0,0.00028253,2]
[377429196,1754409053669,-460.0,0.00028253,2]
[377429197,1754409053679,-460.0,0.00028253,2]
[377429198,1754409053688,-460.0,0.00028253,2]
[377429199,1754409053698,-460.0,0.00028253,2]
[377429200,1754409053707,-465.98958634,0.00028253,2]
[377429201,1754409053716,-460.0,0.00028253,2]
[377429202,1754409053727,-460.0,0.00028253,2]
[377429203,1754409053736,-460.0,0.00028253,2]
[377429204,1754409053746,-460.0,0.00028253,2]
[377429205,1754409053755,-460.0,0.00028254,2]
[377429206,1754409053765,-460.0,0.00028254,2]
[377429207,1754409053774,-460.0,0.00028254,2]
[377429208,1754409053784,-460.0,0.00028254,2]
[377429209,1754409053794,-500.0,0.00028254,5]
[377429210,1754409053803,-469.2621318,0.00028254,2]
[377429211,1754409053813,-460.0,0.00028254,2]
[377429212,1754409053825,-460.0,0.00028254,2]
[377429213,1754409053835,-460.0,0.00028254,2]
[377429214,1754409053844,-460.0,0.00028254,2]
[377429215,1754409053854,-460.0,0.00028254,2]
[377429216,1754409053863,-460.0,0.00028254,2]
[377429217,1754409053873,-549.47,0.00028254,2]
[377429218,1754409053882,-460.0,0.00028254,2]
[377429219,1754409053892,-460.0,0.00028254,2]
[377429220,1754409053901,-472.37112275,0.00028254,2]
[377429221,1754409053910,-566.7,0.00028254,2]
[377429222,1754409053919,-460.0,0.00028254,2]
[377429223,1754409053928,-464.99348653,0.00028254,2]
[377429224,1754409053938,-467.41,0.00028254,2]
[377429225,1754409053947,-460.0,0.00028254,2]
[377429226,1754409053956,-460.0,0.00028254,2]
[377429227,1754409053965,-460.0,0.00028254,2]
[377429228,1754409053974,-260.0,0.00028266,2]
[377429229,1754409053984,-294.07813171,0.00028274,2]
[377429230,1754409053998,-151.0,0.000283,12]
[377429231,1754409054007,-151.0,0.00028322,7]
[377429232,1754409054016,-151.0,0.00028322,7]
[377429233,1754409054025,-164.987345,0.00028322,7]
[377429234,1754409054035,-563.4,0.0002834,3]
[377429235,1754409054044,-1642.22,0.00028349,3]
[377429236,1754409054053,-821.12,0.00028349,3]
[377429237,1754409054063,-342.14,0.00028349,3]
[377429238,1754409054139,-3284.44,0.0002835,3]
[377429239,1754409054158,-842.25606042,0.0002835,3]
[377429240,1754409054167,-160.0,0.0002835,3]
[377429241,1754409054176,-216.4206905,0.0002835,3]
[377429242,1754409054185,-12655.02535889,0.0002835,3]
[377429243,1754409054195,-151.0,0.000284,14]
[377429244,1754409054204,-151.0,0.00028462,7]
[377429245,1754409054214,-151.0,0.00028462,7]
[377429246,1754409054223,-151.0,0.00028462,7]
[377429247,1754409054233,-460.0,0.00028462,2]
[377429248,1754409054242,-151.0,0.00028462,7]
[377429249,1754409054252,-151.0,0.00028462,7]
[377429250,1754409054261,-1212.8,0.00028462,2]
[377429251,1754409054270,-472.47,0.00028462,2]
[377429252,1754409054279,-460.0,0.00028462,2]
[377429253,1754409054288,-151.0,0.00028462,7]
[377429254,1754409054297,-151.0,0.00028462,7]
[377429255,1754409054307,-464.55059867,0.00028462,2]
[377429256,1754409054318,-151.0,0.00028462,7]
[377429258,1754409054327,-472.32073146,0.00028462,2]
[377429260,1754409054336,-460.0,0.00028462,2]
[377429262,1754409054346,-500.0,0.00028468,5]
[377429264,1754409054359,-1500.0,0.00028468,5]
[377429265,1754409054369,-407.27132358,0.00028468,5]
[377429266,1754409054378,-500.0,0.00028468,5]
[377429268,1754409054388,-151.0,0.00028483,7]
[377429270,1754409054398,-151.0,0.00028483,7]
[377429272,1754409054408,-195.826118,0.00028483,7]
[377429274,1754409054417,-195.826118,0.00028483,7]
[377429276,1754409054428,-500.0,0.00028493,7]
[377429278,1754409054437,-460.0,0.00028493,2]
[377429280,1754409054446,-460.0,0.00028493,2]
[377429282,1754409054455,-460.0,0.00028493,2]
[377429284,1754409054464,-460.0,0.00028493,2]
[377429286,1754409054474,-211.59770744,0.00028493,2]
[377429288,1754409054483,-460.0,0.00028493,2]
[377429290,1754409054492,-460.0,0.00028493,2]
[377429292,1754409054501,-460.0,0.00028493,2]
[377429294,1754409054510,-845.72,0.00028493,2]
[377429296,1754409054519,-619.42,0.00028493,2]
[377429298,1754409054528,-460.0,0.00028493,2]
[377429299,1754409054538,-460.0,0.00028493,2]
[377429300,1754409054547,-460.0,0.00028493,2]
[377429301,1754409054557,-460.0,0.00028493,2]
[377429302,1754409054568,-460.0,0.00028493,2]
[377429303,1754409054577,-460.0,0.00028493,2]
[377429304,1754409054587,-460.0,0.00028493,2]
[377429305,1754409054596,-799.22,0.00028493,2]
[377429306,1754409054606,-506.26,0.00028493,2]
[377429307,1754409054615,-460.0,0.00028493,2]
[377429308,1754409054624,-460.0,0.00028493,2]
[377429309,1754409054633,-151.0,0.00028493,7]
[377429310,1754409054642,-460.0,0.00028493,2]
[377429311,1754409054652,-911.51,0.00028493,2]
[377429312,1754409054661,-460.0,0.00028493,2]
[377429314,1754409054671,-460.0,0.00028493,2]
[377429316,1754409054680,-419.08537142,0.00028493,2]
[377429318,1754409054689,-557.39,0.00028493,2]
[377429320,1754409054699,-460.0,0.00028493,2]
[377429322,1754409054708,-756.93,0.00028493,2]
[377429324,1754409054717,-460.0,0.00028493,2]
[377429326,1754409054727,-460.0,0.00028493,2]
[377429328,1754409054736,-1414.05,0.00028493,2]
[377429330,1754409054746,-460.0,0.00028493,2]
[377429332,1754409054755,-460.0,0.00028493,2]
[377429334,1754409054765,-3511.45,0.00028493,2]
[377429336,1754409054774,-460.0,0.00028493,2]
[377429338,1754409054783,-460.0,0.00028493,2]
[377429340,1754409054792,-654.72,0.00028493,2]
[377429342,1754409054802,-470.51030428,0.00028493,2]
[377429344,1754409054811,-673.35,0.00028493,2]
[377429346,1754409054822,-2081.36,0.00028493,2]
[377429348,1754409054831,-460.0,0.00028493,2]
[377429350,1754409054841,-1175.62,0.00028493,2]
[377429352,1754409054850,-460.0,0.00028493,2]
[377429354,1754409054859,-1689.44,0.00028493,2]
[377429356,1754409054868,-460.0,0.00028493,2]
[377429358,1754409054878,-460.0,0.00028493,2]
[377429360,1754409054887,-460.0,0.00028493,2]
[377429362,1754409054896,-460.0,0.00028493,2]
[377429363,1754409054906,-1728.56,0.00028493,2]
[377429364,1754409054916,-697.8,0.00028493,2]
[377429365,1754409054924,-235.12865115,0.00028493,2]
[377429366,1754409054935,-982.92,0.00028493,2]
[377429367,1754409054945,-460.0,0.00028493,2]
[377429368,1754409054954,-460.0,0.00028493,2]
[377429369,1754409054964,-708.67,0.00028493,2]
[377429370,1754409054973,-1169.66,0.00028493,2]
[377429371,1754409054983,-839.68,0.00028493,2]
[377429372,1754409054996,-460.0,0.00028493,2]
[377429373,1754409055006,-570.44,0.00028493,2]
[377429374,1754409055016,-460.0,0.00028493,2]
[377429375,1754409055025,-460.0,0.00028493,2]
[377429376,1754409055034,-460.0,0.00028493,2]
[377429377,1754409055044,-460.0,0.00028493,2]
[377429378,1754409055054,-961.19,0.00028493,2]
[377429379,1754409055063,-460.0,0.00028493,2]
[377429380,1754409055074,-460.0,0.00028493,2]
[377429381,1754409055083,-460.0,0.00028493,2]
[377429382,1754409055092,-471.73,0.00028493,2]
[377429383,1754409055102,-416.28278913,0.00028493,2]
[377429384,1754409055111,-460.0,0.00028493,2]
[377429385,1754409055120,-460.0,0.00028493,2]
[377429386,1754409055130,-2396.86,0.00028493,2]
[377429387,1754409055140,-460.0,0.00028493,2]
[377429388,1754409055149,-789.91,0.00028493,2]
[377429389,1754409055158,-460.0,0.00028493,2]
[377429390,1754409055168,-460.0,0.00028493,2]
[377429391,1754409055178,-871.01,0.00028493,2]
[377429392,1754409055187,-460.0,0.00028493,2]
[377429393,1754409055197,-460.0,0.00028493,2]
[377429394,1754409055207,-460.0,0.00028493,2]
[377429395,1754409055216,-711.15,0.00028493,2]
[377429396,1754409055225,-1056.26,0.00028493,2]
[377429397,1754409055235,-460.0,0.00028493,2]
[377429398,1754409055244,-151.0,0.00028493,7]
[377429399,1754409055253,-460.0,0.00028493,2]
[377429400,1754409055263,-1053.24,0.00028493,2]
[377429401,1754409055273,-294.43682432,0.00028493,2]
[377429402,1754409055282,-468.11,0.00028493,2]
[377429403,1754409055291,-642.56,0.00028493,2]
[377429404,1754409055301,-460.0,0.00028493,2]
[377429405,1754409055310,-709.8,0.00028493,2]
[377429406,1754409055321,-465.84102802,0.00028493,2]
[377429407,1754409055330,-460.0,0.00028493,2]
[377429408,1754409055340,-460.0,0.00028493,2]
[377429409,1754409055350,-514.83,0.00028493,2]
[377429410,1754409055360,-460.0,0.00028493,2]
[377429411,1754409055370,-1191.82,0.00028493,2]
[377429412,1754409055379,-460.0,0.00028493,2]
[377429413,1754409055389,-1935.53,0.00028493,2]
[377429414,1754409055398,-490.45,0.00028493,2]
[377429415,1754409055407,-1284.43,0.00028493,2]
[377429416,1754409055416,-151.0,0.00028493,7]
[377429417,1754409055430,-546.3,0.00028493,2]
[377429418,1754409055440,-676.59,0.00028493,2]
[377429419,1754409055450,-460.0,0.00028493,2]
[377429420,1754409055459,-460.0,0.00028493,2]
[377429421,1754409055468,-541.21,0.00028493,2]
[377429422,1754409055478,-460.0,0.00028493,2]
[377429423,1754409055487,-740.58,0.00028493,2]
[377429424,1754409055496,-460.0,0.00028493,2]
[377429426,1754409055506,-460.0,0.00028493,2]
[377429428,1754409055516,-460.0,0.00028493,2]
[377429429,1754409055525,-460.0,0.00028493,2]
[377429434,1754409055535,-460.0,0.00028493,2]
[377429435,1754409055614,-460.0,0.00028493,2]
[377429436,1754409055624,-500.0,0.00028493,2]
[377429437,1754409055634,-556.84,0.00028493,2]
[377429438,1754409055644,-460.0,0.00028493,2]
[377429439,1754409055653,-460.0,0.00028493,2]
[377429440,1754409055663,-460.0,0.00028493,2]
[377429441,1754409055673,-4337.79,0.00028493,2]
[377429442,1754409055683,-460.0,0.00028493,2]
[377429444,1754409055692,-460.0,0.00028493,2]
[377429445,1754409055701,-460.0,0.00028493,2]
[377429447,1754409055710,-1000.0,0.000285,3]
[377429449,1754409055719,-460.0,0.00028527,2]
[377429450,1754409055729,-500.0,0.00028527,2]
[377429451,1754409055738,-460.0,0.00028527,2]
[377429452,1754409055748,-460.0,0.00028527,2]
[377429453,1754409055757,-460.0,0.00028527,2]
[377429454,1754409055766,-460.0,0.00028527,2]
[377429455,1754409055776,-449.78331869,0.00028527,2]
[377429456,1754409055785,-460.0,0.00028527,2]
[377429457,1754409055795,-460.0,0.00028527,2]
[377429458,1754409055805,-516.11,0.00028527,2]
[377429459,1754409055815,-460.0,0.00028528,2]
[377429460,1754409055829,-467.34403927,0.00028528,2]
[377429461,1754409055843,-460.0,0.00028528,2]
[377429462,1754409055855,-460.0,0.00028528,2]
[377429463,1754409055866,-500.0,0.00028528,5]
[377429464,1754409055878,-460.0,0.00028528,2]
[377429465,1754409055889,-460.0,0.00028528,2]
[377429466,1754409055900,-460.0,0.00028528,2]
[377429467,1754409055912,-460.0,0.00028528,2]
[377429468,1754409055923,-477.67445818,0.00028528,2]
[377429469,1754409055935,-549.47,0.00028528,2]
[377429470,1754409055946,-229.8108045,0.00028528,2]
[377429471,1754409055957,-460.0,0.00028528,2]
[377429472,1754409055969,-566.7,0.00028528,2]
[377429473,1754409055981,-460.0,0.00028528,2]
[377429474,1754409055996,-467.41,0.00028528,2]
[377429475,1754409056008,-460.0,0.00028528,2]
[377429476,1754409056019,-460.0,0.00028528,2]
[377429477,1754409056031,-460.0,0.00028528,2]
[377429478,1754409056042,-151.0,0.00028596,7]
[377429479,1754409056053,-151.0,0.00028596,7]
[377429480,1754409056065,-164.987345,0.00028596,7]
[377429481,1754409056090,-151.0,0.00028596,7]
[377429482,1754409056102,-166.901726,0.00028596,7]
[377429483,1754409056113,-195.826118,0.00028596,7]
[377429484,1754409056125,-195.826118,0.00028596,7]
[377429485,1754409056136,-1190.94542455,0.00028616,5]
[377429486,1754409056147,-23528.48505612,0.00028636,2]
[377429487,1754409056161,-408.0,0.00028659,2]
[377429488,1754409056171,-971.0,0.00028659,2]
[377429489,1754409056181,-636.0,0.00028659,2]
[377429490,1754409056193,-2148.0,0.00028659,2]
[377429491,1754409056203,-251.40992923,0.00028701,2]
[377429492,1754409056214,-151.0,0.00028736,7]
[377429493,1754409056224,-151.0,0.00028736,7]
[377429494,1754409056234,-156.37748146,0.00028736,2]
[377429495,1754409056244,-176.036266,0.00028736,7]
[377429496,1754409056253,-218.096744,0.00028736,7]
[377429497,1754409056263,-1212.8,0.00028736,2]
[377429498,1754409056272,-472.47,0.00028736,2]
[377429499,1754409056281,-151.0,0.00028736,7]